[Event "4NCL 2019-20"]
[Site "Daventry"]
[Date "2020.02.09"]
[Round "6"]
[White "Ledger, Stephen C"]
[Black "Freeman, Gordon"]
[Result "1/2-1/2"]
[ECO "D02"]
[WhiteElo "2013"]
[BlackElo "2088"]
[Annotator "NA"]
[PlyCount "56"]
[EventDate "2020.01.11"]
[EventCountry "ENG"]
[SourceTitle "playchess.com"]
[Source "ChessBase"]
[SourceQuality "1"]
[TimeControl "40/6000:3000+30"]

1. d4 {[%emt 0:00:00]} d5 {[%emt 0:00:00]} 2. Bf4 {[%emt 0:00:00]} c6 {[%emt 0:00:00]} 3. e3 {[%emt 0:00:00]} Nf6 {[%emt 0:01:52]} 4. Nd2 {[%emt 0:04:15]} Bf5 {[%emt 0:00:59]} 5. c3 {[%emt 0:02:03]} e6 {[%emt 0:00:00]} 6. Ngf3 {[%emt 0:00:25]} Bd6 {[%emt 0:05:25]} 7. Bg3 {[%emt 0:00:52]} Bxg3 {[%emt 0:00:45]} 8. hxg3 {[%emt 0:00:00]} Nbd7 {[%emt 0:02:29]} 9. Be2 {[%emt 0:04:50]} Ne4 {[%emt 0:03:41]} 10. Nh4 {[%emt 0:10:31]} Ndf6 {[%emt 0:04:44]} 11. Nxe4 {[%emt 0:07:46]} Bxe4 {[%emt 0:03:33]} 12. f3 {[%emt 0:09:01]} Qc7 {[%emt 0:04:41]} 13. Rh3 {[%emt 0:09:32]} g5 {[%emt 0:00:31]} 14. fxe4 {[%emt 0:03:53]} Nxe4 {[%emt 0:00:43]} 15. Bd3 {[%emt 0:06:57]} gxh4 {[%emt 0:04:24]} 16. Bxe4 {[%emt 0:02:53]} dxe4 {[%emt 0:00:00]} 17. Qg4 {[%emt 0:03:19]} hxg3 {[%emt 0:09:27]} 18. Qxe4 {[%emt 0:00:17]} O-O-O {[%emt 0:01:40]} 19. O-O-O {[%emt 0:04:56]} h5 {[%emt 0:11:05]} 20. Rf1 {[%emt 0:04:19]} Rd5 {[%emt 0:07:21]} 21. a3 {[%emt 0:04:16]} Rg5 {[%emt 0:02:49]} 22. Rf4 {[%emt 0:06:30]} Qd7 {[%emt 0:21:07]} 23. Rf3 {[%emt 0:06:26]} Rhg8 {[%emt 0:01:52]} 24. Qh7 {[%emt 0:02:12]} R8g7 {[%emt 0:00:24]} 25. Qh8+ {[%emt 0:00:35]} Rg8 {[%emt 0:04:30]} 26. Qh7 {[%emt 0:00:00]} R8g7 {[%emt 0:02:12]} 27. Qh8+ {[%emt 0:00:20]} Rg8 {[%emt 0:00:32]} 28. Qf6 {[%emt 0:02:53]} e5 {[%emt 0:00:15]} 1/2-1/2

[Event "4NCL 2019-20"]
[Site "Daventry"]
[Date "2020.02.09"]
[Round "6"]
[White "Regan, Natasha K"]
[Black "Ciuksyte, Dagne"]
[Result "0-1"]
[ECO "A02"]
[WhiteElo "1956"]
[BlackElo "2295"]
[Annotator "ChessBase"]
[PlyCount "48"]
[EventDate "2020.01.11"]
[EventCountry "ENG"]
[SourceTitle "playchess.com"]
[Source "ChessBase"]
[SourceQuality "1"]
[TimeControl "40/6000:3000+30"]

1. f4 {[%emt 0:00:00]} Nf6 {[%emt 0:00:12]} 2. Nf3 {[%emt 0:00:00]} c5 {[%emt 0:01:00]} 3. g3 {[%emt 0:00:00]} b6 {[%emt 0:09:20]} 4. Bg2 {[%emt 0:00:00]} Bb7 {[%emt 0:00:00]} 5. d3 {[%emt 0:00:05]} d5 {[%emt 0:00:35]} 6. a4 {[%emt 0:00:43]} g6 {[%emt 0:01:10]} 7. O-O {[%emt 0:02:52]} Bg7 {[%emt 0:00:00]} 8. h3 {[%emt 0:06:20]} Nc6 {[%emt 0:02:19]} 9. Qe1 {[%emt 0:01:44]} O-O {[%emt 0:01:14]} 10. g4 {[%emt 0:01:07]} d4 {[%emt 0:19:17]} 11. c3 {[%emt 0:04:12]} Nd5 {[%emt 0:01:34]} 12. Bd2 {[%emt 0:02:39]} Qd7 {[%emt 0:13:38]} 13. Na3 {[%emt 0:07:44]} Na5 {[%emt 0:02:58]} 14. Ne5 {[%emt 0:11:39]} Bxe5 {[%emt 0:01:23]} 15. fxe5 {[%emt 0:00:00]} Nb3 {[%emt 0:00:00]} 16. Bh6 {[%emt 0:21:11]} Nxa1 {[%emt 0:02:07]} 17. Bxf8 {[%emt 0:09:36]} Rxf8 {[%emt 0:00:17]} 18. Qxa1 {[%emt 0:02:23]} Ne3 {[%emt 0:01:02]} 19. e6 {[%emt 0:00:07]} Qc7 {[%emt 0:04:07]} 20. exf7+ {[%emt 0:05:01]} Kg7 {[%emt 0:00:56]} 21. Bxb7 {[%emt 0:02:09]} Qg3+ {[%emt 0:00:24]} 22. Kh1 {[%emt 0:00:42]} Qxh3+ {[%emt 0:00:00]} 23. Kg1 {[%emt 0:00:00]} Qg3+ {[%emt 0:00:00]} 24. Kh1 {[%emt 0:00:00]} Nxg4 {[%emt 0:00:00]} 0-1

[Event "4NCL 2019-20"]
[Site "Daventry"]
[Date "2020.02.09"]
[Round "6"]
[White "Benhamida, Aisha"]
[Black "York-Weaving, Anna"]
[Result "1/2-1/2"]
[ECO "B18"]
[WhiteElo "1577"]
[BlackElo "1739"]
[Annotator "NA"]
[PlyCount "50"]
[EventDate "2020.01.11"]
[EventCountry "ENG"]
[SourceTitle "playchess.com"]
[Source "ChessBase"]
[SourceQuality "1"]
[TimeControl "40/6000:3000+30"]

1. e4 {[%emt 0:00:02]} c6 {[%emt 0:01:22]} 2. d4 {[%emt 0:00:34]} d5 {[%emt 0:00:27]} 3. Nd2 {[%emt 0:00:00]} dxe4 {[%emt 0:00:00]} 4. Nxe4 {[%emt 0:00:00]} Bf5 {[%emt 0:00:24]} 5. Ng3 {[%emt 0:00:00]} Bg6 {[%emt 0:00:00]} 6. Nf3 {[%emt 0:00:00]} Nd7 {[%emt 0:00:00]} 7. Bd3 {[%emt 0:00:00]} Bxd3 {[%emt 0:00:00]} 8. Qxd3 {[%emt 0:00:35]} e6 {[%emt 0:00:00]} 9. O-O {[%emt 0:00:00]} Ngf6 {[%emt 0:01:32]} 10. Re1 {[%emt 0:01:13]} Be7 {[%emt 0:00:00]} 11. c3 {[%emt 0:00:54]} O-O {[%emt 0:00:00]} 12. Bf4 {[%emt 0:00:21]} Nd5 {[%emt 0:04:28]} 13. Bd2 {[%emt 0:00:38]} c5 {[%emt 0:04:55]} 14. c4 {[%emt 0:15:03]} N5f6 {[%emt 0:02:33]} 15. Bc3 {[%emt 0:07:26]} Rc8 {[%emt 0:05:10]} 16. Qe2 {[%emt 0:07:56]} Re8 {[%emt 0:03:34]} 17. Rad1 {[%emt 0:08:06]} Qc7 {[%emt 0:07:45]} 18. b3 {[%emt 0:00:57]} Bd6 {[%emt 0:05:03]} 19. Ne5 {[%emt 0:08:13]} Rcd8 {[%emt 0:15:51]} 20. h3 {[%emt 0:22:18]} h6 {[%emt 0:19:06]} 21. Rd3 {[%emt 0:10:39]} cxd4 {[%emt 0:13:13]} 22. Bxd4 {[%emt 0:00:02]} Nxe5 {[%emt 0:01:03]} 23. Bxe5 {[%emt 0:00:00]} Bxe5 {[%emt 0:00:00]} 24. Rxd8 {[%emt 0:00:00]} Rxd8 {[%emt 0:00:00]} 25. Qxe5 {[%emt 0:00:00]} Qd7 {[%emt 0:02:48]} 1/2-1/2